[Event "Titled Tuesday Blitz June 28 Early 2022"]
[White "Urbina Perez, Juan Antonio"]
[Black "Fernandez Hernandez, Gerardo"]
[WhiteFideId "2217368"]
[BlackFideId "2207400"]
[WhiteElo "2192"]
[BlackElo "2243"]
[Result "1-0"]
[Round "04"]
[TimeControl "180+1"]
[Date "2022.06.28"]
[WhiteClock "0:01:26"]
[BlackClock "0:00:01"]

1. e4 {[%clk 0:03:00]}  c5 {[%clk 0:02:55]} 2. Nf3 {[%clk 0:02:58]}  Nc6 {[%clk 0:02:56]} 3. Bb5 {[%clk 0:02:57]}  g6 {[%clk 0:02:53]} 4. Bxc6 {[%clk 0:02:56]}  dxc6 {[%clk 0:02:53]} 5. d3 {[%clk 0:02:56]}  Bg7 {[%clk 0:02:53]} 6. h3 {[%clk 0:02:57]}  e5 {[%clk 0:02:50]} 7. Nc3 {[%clk 0:02:57]}  Qc7 {[%clk 0:02:49]} 8. Be3 {[%clk 0:02:58]}  b6 {[%clk 0:02:48]} 9. Qd2 {[%clk 0:02:58]}  Nf6 {[%clk 0:02:49]} 10. Bh6 {[%clk 0:02:58]}  O-O {[%clk 0:02:49]} 11. Bxg7 {[%clk 0:02:59]}  Kxg7 {[%clk 0:02:49]} 12. O-O {[%clk 0:02:59]}  Ba6 {[%clk 0:02:35]} 13. b3 {[%clk 0:02:56]}  Rad8 {[%clk 0:02:27]} 14. Qg5 {[%clk 0:02:51]}  Rfe8 {[%clk 0:02:14]} 15. a4 {[%clk 0:02:47]}  Nd7 {[%clk 0:02:10]} 16. Nh2 {[%clk 0:02:30]}  f6 {[%clk 0:02:09]} 17. Qg3 {[%clk 0:02:30]}  Nf8 {[%clk 0:02:06]} 18. Ng4 {[%clk 0:02:26]}  h5 {[%clk 0:01:58]} 19. Ne3 {[%clk 0:02:25]}  Ne6 {[%clk 0:01:56]} 20. Ne2 {[%clk 0:02:22]}  Nf4 {[%clk 0:01:54]} 21. Rae1 {[%clk 0:02:16]}  Kh7 {[%clk 0:01:46]} 22. Qf3 {[%clk 0:02:11]}  Ne6 {[%clk 0:01:40]} 23. Qg3 {[%clk 0:02:06]}  Nf4 {[%clk 0:01:39]} 24. Qf3 {[%clk 0:02:05]}  Ne6 {[%clk 0:01:39]} 25. Ng3 {[%clk 0:02:04]}  Nd4 {[%clk 0:01:33]} 26. Qd1 {[%clk 0:02:01]}  Qf7 {[%clk 0:01:29]} 27. f4 {[%clk 0:01:57]}  Bc8 {[%clk 0:01:11]} 28. f5 {[%clk 0:01:47]}  gxf5 {[%clk 0:00:54]} 29. Nexf5 {[%clk 0:01:43]}  Bxf5 {[%clk 0:00:49]} 30. Nxf5 {[%clk 0:01:44]}  Rg8 {[%clk 0:00:40]} 31. Nxd4 {[%clk 0:01:36]}  cxd4 {[%clk 0:00:36]} 32. Rf5 {[%clk 0:01:36]}  Kh6 {[%clk 0:00:29]} 33. Ref1 {[%clk 0:01:35]}  Rd6 {[%clk 0:00:25]} 34. Qd2+ {[%clk 0:01:34]}  Kh7 {[%clk 0:00:22]} 35. Qe2 {[%clk 0:01:34]}  Kh6 {[%clk 0:00:20]} 36. Qd2+ {[%clk 0:01:34]}  Kh7 {[%clk 0:00:20]} 37. Qf2 {[%clk 0:01:35]}  Qg6 {[%clk 0:00:15]} 38. Kh2 {[%clk 0:01:30]}  Qh6 {[%clk 0:00:06]} 39. Qf3 {[%clk 0:01:30]}  Rg5 {[%clk 0:00:05]} 40. Rxf6 {[%clk 0:01:25]}  Rxf6 {[%clk 0:00:01]} 41. Qxf6 {[%clk 0:01:26]} 1-0


[Site "https://www.chess.com"]

[Event "Titled Tuesday Blitz June 28 Early 2022"]
[White "Warmerdam, Max"]
[Black "Gracia Alvarez, Gerardo Antonio"]
[WhiteFideId "1048104"]
[BlackFideId "5109124"]
[WhiteElo "2537"]
[BlackElo "2139"]
[Result "1-0"]
[Round "04"]
[TimeControl "180+1"]
[Date "2022.06.28"]
[WhiteClock "0:01:22"]
[BlackClock "0:00:14"]

1. e4 {[%clk 0:03:00]}  c5 {[%clk 0:02:59]} 2. Nf3 {[%clk 0:03:01]}  Nc6 {[%clk 0:02:59]} 3. Bb5 {[%clk 0:02:58]}  d6 {[%clk 0:02:59]} 4. O-O {[%clk 0:02:58]}  Bd7 {[%clk 0:03:00]} 5. c3 {[%clk 0:02:57]}  Nf6 {[%clk 0:03:00]} 6. Re1 {[%clk 0:02:58]}  a6 {[%clk 0:03:00]} 7. Bf1 {[%clk 0:02:58]}  Bg4 {[%clk 0:03:00]} 8. d4 {[%clk 0:02:59]}  cxd4 {[%clk 0:03:00]} 9. cxd4 {[%clk 0:03:00]}  e5 {[%clk 0:03:00]} 10. d5 {[%clk 0:03:00]}  Nd4 {[%clk 0:03:00]} 11. Be3 {[%clk 0:03:00]}  Nxf3+ {[%clk 0:02:58]} 12. gxf3 {[%clk 0:03:01]}  Bd7 {[%clk 0:02:58]} 13. Nd2 {[%clk 0:03:02]}  b5 {[%clk 0:02:54]} 14. a4 {[%clk 0:03:02]}  Be7 {[%clk 0:02:51]} 15. axb5 {[%clk 0:03:00]}  axb5 {[%clk 0:02:52]} 16. Qb3 {[%clk 0:02:56]}  O-O {[%clk 0:02:47]} 17. Rxa8 {[%clk 0:02:37]}  Qxa8 {[%clk 0:02:47]} 18. Rc1 {[%clk 0:02:37]}  Rb8 {[%clk 0:02:09]} 19. Qb4 {[%clk 0:02:16]}  Qa4 {[%clk 0:01:49]} 20. Qc3 {[%clk 0:02:11]}  h6 {[%clk 0:01:34]} 21. b3 {[%clk 0:02:07]}  Qa6 {[%clk 0:00:59]} 22. Ra1 {[%clk 0:02:07]}  Qc8 {[%clk 0:01:00]} 23. Qxc8+ {[%clk 0:01:54]}  Rxc8 {[%clk 0:00:54]} 24. b4 {[%clk 0:01:55]}  Rc2 {[%clk 0:00:47]} 25. Nb3 {[%clk 0:01:50]}  Rb2 {[%clk 0:00:46]} 26. Ra3 {[%clk 0:01:49]}  Rb1 {[%clk 0:00:37]} 27. Bc1 {[%clk 0:01:42]}  Nxd5 {[%clk 0:00:24]} 28. exd5 {[%clk 0:01:36]}  Bf5 {[%clk 0:00:23]} 29. Kg2 {[%clk 0:01:31]}  Bc2 {[%clk 0:00:20]} 30. Ra8+ {[%clk 0:01:23]}  Kh7 {[%clk 0:00:19]} 31. Na1 {[%clk 0:01:22]}  Rxc1 {[%clk 0:00:14]} 32. Nxc2 {[%clk 0:01:22]}  Rxc2 {[%clk 0:00:14]} 33. Bd3+ {[%clk 0:01:22]} 1-0


[Site "https://www.chess.com"]

[Event "Titled Tuesday Blitz June 28 Early 2022"]
[White "Weishaeutel, Moritz"]
[Black "Polster, Christian"]
[WhiteFideId "12967300"]
[BlackFideId "12965081"]
[WhiteElo "2002"]
[BlackElo "2294"]
[Result "1-0"]
[Round "04"]
[TimeControl "180+1"]
[Date "2022.06.28"]
[WhiteClock "0:02:34"]
[BlackClock "0:01:41"]

1. e4 {[%clk 0:03:00]}  c5 {[%clk 0:02:58]} 2. b4 {[%clk 0:03:00]}  cxb4 {[%clk 0:02:58]} 3. a3 {[%clk 0:03:01]}  e6 {[%clk 0:02:50]} 4. axb4 {[%clk 0:02:59]}  Bxb4 {[%clk 0:02:32]} 5. Bb2 {[%clk 0:02:57]}  Nf6 {[%clk 0:02:29]} 6. e5 {[%clk 0:02:58]}  Nd5 {[%clk 0:02:28]} 7. c4 {[%clk 0:02:57]}  Nb6 {[%clk 0:02:28]} 8. Ra3 {[%clk 0:02:56]}  Nc6 {[%clk 0:02:22]} 9. Rg3 {[%clk 0:02:55]}  g6 {[%clk 0:02:15]} 10. h4 {[%clk 0:02:52]}  h5 {[%clk 0:02:14]} 11. Nc3 {[%clk 0:02:43]}  Be7 {[%clk 0:01:49]} 12. Ne4 {[%clk 0:02:34]}  Bd6 {[%clk 0:01:41]} 13. Nxd6+ {[%clk 0:02:34]} 1-0


[Site "https://www.chess.com"]

[Event "Titled Tuesday Blitz June 28 Early 2022"]
[White "Yoo, Christopher Woojin"]
[Black "Sokolovsky, Yahli"]
[WhiteFideId "30909694"]
[BlackFideId "2820242"]
[WhiteElo "2105"]
[BlackElo "1770"]
[Result "1-0"]
[Round "04"]
[TimeControl "180+1"]
[Date "2022.06.28"]
[WhiteClock "0:00:04"]
[BlackClock "0:00:03"]

1. e4 {[%clk 0:03:00]}  g6 {[%clk 0:03:00]} 2. h4 {[%clk 0:03:00]}  h5 {[%clk 0:02:56]} 3. d4 {[%clk 0:02:59]}  Bg7 {[%clk 0:02:56]} 4. c3 {[%clk 0:03:00]}  d6 {[%clk 0:02:57]} 5. Bd3 {[%clk 0:03:00]}  c5 {[%clk 0:02:56]} 6. dxc5 {[%clk 0:02:58]}  dxc5 {[%clk 0:02:56]} 7. Nf3 {[%clk 0:02:58]}  Nc6 {[%clk 0:02:56]} 8. O-O {[%clk 0:02:58]}  Bg4 {[%clk 0:02:55]} 9. Bb5 {[%clk 0:01:43]}  Qb6 {[%clk 0:01:55]} 10. Qa4 {[%clk 0:01:35]}  Bxf3 {[%clk 0:01:53]} 11. gxf3 {[%clk 0:01:36]}  e6 {[%clk 0:01:38]} 12. Bf4 {[%clk 0:01:32]}  Ne7 {[%clk 0:01:33]} 13. Bd6 {[%clk 0:01:23]}  a6 {[%clk 0:01:22]} 14. Na3 {[%clk 0:01:22]}  Rd8 {[%clk 0:01:06]} 15. Bxe7 {[%clk 0:01:16]}  axb5 {[%clk 0:01:04]} 16. Bxd8 {[%clk 0:01:11]}  Qxd8 {[%clk 0:01:04]} 17. Qxb5 {[%clk 0:01:01]}  Qxh4 {[%clk 0:01:04]} 18. Rfd1 {[%clk 0:00:59]}  O-O {[%clk 0:01:00]} 19. Qf1 {[%clk 0:00:39]}  Ne5 {[%clk 0:00:59]} 20. Qg2 {[%clk 0:00:39]}  Qf4 {[%clk 0:00:55]} 21. Qg3 {[%clk 0:00:39]}  Nxf3+ {[%clk 0:00:54]} 22. Kg2 {[%clk 0:00:39]}  Nh4+ {[%clk 0:00:52]} 23. Kh3 {[%clk 0:00:40]}  Qxg3+ {[%clk 0:00:17]} 24. fxg3 {[%clk 0:00:40]}  Nf3 {[%clk 0:00:18]} 25. Kg2 {[%clk 0:00:40]}  Ng5 {[%clk 0:00:18]} 26. Re1 {[%clk 0:00:39]}  Be5 {[%clk 0:00:12]} 27. Rad1 {[%clk 0:00:36]}  Ra8 {[%clk 0:00:09]} 28. Nc4 {[%clk 0:00:28]}  Bf6 {[%clk 0:00:05]} 29. e5 {[%clk 0:00:26]}  Be7 {[%clk 0:00:04]} 30. Rd7 {[%clk 0:00:23]}  Kf8 {[%clk 0:00:05]} 31. a3 {[%clk 0:00:23]}  b5 {[%clk 0:00:05]} 32. Nd6 {[%clk 0:00:23]}  b4 {[%clk 0:00:02]} 33. cxb4 {[%clk 0:00:22]}  cxb4 {[%clk 0:00:03]} 34. axb4 {[%clk 0:00:23]}  Rb8 {[%clk 0:00:03]} 35. b5 {[%clk 0:00:19]}  Bxd6 {[%clk 0:00:02]} 36. exd6 {[%clk 0:00:20]}  Rxb5 {[%clk 0:00:03]} 37. Rd8+ {[%clk 0:00:13]}  Kg7 {[%clk 0:00:03]} 38. Re2 {[%clk 0:00:14]}  Rd5 {[%clk 0:00:03]} 39. b4 {[%clk 0:00:13]}  e5 {[%clk 0:00:03]} 40. d7 {[%clk 0:00:13]}  Ne6 {[%clk 0:00:04]} 41. Rb8 {[%clk 0:00:11]}  Rxd7 {[%clk 0:00:04]} 42. Rxe5 {[%clk 0:00:10]}  Rd2+ {[%clk 0:00:05]} 43. Kf3 {[%clk 0:00:11]}  Nd4+ {[%clk 0:00:03]} 44. Ke3 {[%clk 0:00:10]}  Rd1 {[%clk 0:00:04]} 45. Re4 {[%clk 0:00:07]}  Nc2+ {[%clk 0:00:03]} 46. Kf2 {[%clk 0:00:06]}  Rb1 {[%clk 0:00:03]} 47. b5 {[%clk 0:00:07]}  Rb2 {[%clk 0:00:02]} 48. Re2 {[%clk 0:00:06]}  Ra2 {[%clk 0:00:02]} 49. b6 {[%clk 0:00:06]}  Rb2 {[%clk 0:00:02]} 50. b7 {[%clk 0:00:07]}  h4 {[%clk 0:00:03]} 51. gxh4 {[%clk 0:00:06]}  g5 {[%clk 0:00:03]} 52. h5 {[%clk 0:00:06]}  g4 {[%clk 0:00:04]} 53. h6+ {[%clk 0:00:05]}  Kh7 {[%clk 0:00:04]} 54. Rc8 {[%clk 0:00:03]}  g3+ {[%clk 0:00:05]} 55. Kxg3 {[%clk 0:00:03]}  Rb3+ {[%clk 0:00:06]} 56. Kf2 {[%clk 0:00:03]}  Rxb7 {[%clk 0:00:07]} 57. Rexc2 {[%clk 0:00:03]}  Kxh6 {[%clk 0:00:07]} 58. R8c6+ {[%clk 0:00:04]}  Kg7 {[%clk 0:00:08]} 59. R6c4 {[%clk 0:00:04]}  Rb6 {[%clk 0:00:08]} 60. Rf4 {[%clk 0:00:05]}  Rg6 {[%clk 0:00:08]} 61. Rc7 {[%clk 0:00:05]}  Ra6 {[%clk 0:00:08]} 62. Rcxf7+ {[%clk 0:00:05]}  Kg6 {[%clk 0:00:09]} 63. Kg3 {[%clk 0:00:05]}  Ra3+ {[%clk 0:00:09]} 64. Kg4 {[%clk 0:00:06]}  Ra6 {[%clk 0:00:09]} 65. R7f5 {[%clk 0:00:06]}  Kh6 {[%clk 0:00:07]} 66. Rh5+ {[%clk 0:00:04]}  Kg6 {[%clk 0:00:06]} 67. Rg5+ {[%clk 0:00:05]}  Kh7 {[%clk 0:00:04]} 68. Rff5 {[%clk 0:00:04]}  Ra4+ {[%clk 0:00:04]} 69. Kh5 {[%clk 0:00:04]}  Ra7 {[%clk 0:00:04]} 70. Rf6 {[%clk 0:00:04]}  Ra1 {[%clk 0:00:03]} 71. Rh6# {[%clk 0:00:04]} 1-0


[Site "https://www.chess.com"]

[Event "Titled Tuesday Blitz June 28 Early 2022"]
[White "Zochowski, Kacper"]
[Black "Liyanage, Ranindu Dilshan"]
[WhiteFideId "1125494"]
[BlackFideId "9915834"]
[WhiteElo "2214"]
[BlackElo "1858"]
[Result "0-1"]
[Round "04"]
[TimeControl "180+1"]
[Date "2022.06.28"]
[WhiteClock "0:02:37"]
[BlackClock "0:02:07"]

1. d4 {[%clk 0:03:00]}  Nf6 {[%clk 0:02:59]} 2. Bg5 {[%clk 0:03:00]}  d5 {[%clk 0:02:59]} 3. Nd2 {[%clk 0:03:00]}  Nbd7 {[%clk 0:02:59]} 4. e3 {[%clk 0:03:00]}  e6 {[%clk 0:02:55]} 5. c3 {[%clk 0:02:58]}  c5 {[%clk 0:02:55]} 6. Bd3 {[%clk 0:02:59]}  b6 {[%clk 0:02:54]} 7. f4 {[%clk 0:02:58]}  Bb7 {[%clk 0:02:54]} 8. Ngf3 {[%clk 0:02:58]}  Be7 {[%clk 0:02:55]} 9. O-O {[%clk 0:02:58]}  h6 {[%clk 0:02:54]} 10. Bh4 {[%clk 0:02:58]}  O-O {[%clk 0:02:55]} 11. Qe2 {[%clk 0:02:56]}  Ne4 {[%clk 0:02:47]} 12. Bxe4 {[%clk 0:02:54]}  dxe4 {[%clk 0:02:48]} 13. Ne5 {[%clk 0:02:54]}  Bxh4 {[%clk 0:02:46]} 14. Qg4 {[%clk 0:02:43]}  f5 {[%clk 0:02:32]} 15. Qg6 {[%clk 0:02:42]}  Nxe5 {[%clk 0:02:23]} 16. fxe5 {[%clk 0:02:41]}  Qe8 {[%clk 0:02:23]} 17. Qxe8 {[%clk 0:02:38]}  Rfxe8 {[%clk 0:02:18]} 18. Nc4 {[%clk 0:02:39]}  Be7 {[%clk 0:02:11]} 19. Rfe1 {[%clk 0:02:37]}  Rac8 {[%clk 0:02:10]} 20. b3 {[%clk 0:02:37]}  Ba6 {[%clk 0:02:07]} 0-1


[Site "https://www.chess.com"]

[Event "Titled Tuesday Blitz June 28 Early 2022"]
[White "Zubritskiy, Artyom"]
[Black "Prieto Aranguren, Alain"]
[WhiteFideId "4181247"]
[BlackFideId "2268906"]
[WhiteElo "2478"]
[BlackElo "2224"]
[Result "1-0"]
[Round "04"]
[TimeControl "180+1"]
[Date "2022.06.28"]
[WhiteClock "0:00:48"]
[BlackClock "0:00:03"]

1. d4 {[%clk 0:03:00]}  g6 {[%clk 0:02:56]} 2. c4 {[%clk 0:02:59]}  Bg7 {[%clk 0:02:56]} 3. g3 {[%clk 0:03:00]}  Nf6 {[%clk 0:02:54]} 4. Bg2 {[%clk 0:03:00]}  O-O {[%clk 0:02:54]} 5. Nc3 {[%clk 0:03:00]}  d6 {[%clk 0:02:54]} 6. Nf3 {[%clk 0:03:00]}  Nbd7 {[%clk 0:02:51]} 7. O-O {[%clk 0:03:00]}  e5 {[%clk 0:02:51]} 8. e4 {[%clk 0:03:01]}  c6 {[%clk 0:02:51]} 9. h3 {[%clk 0:03:00]}  Qb6 {[%clk 0:02:50]} 10. Re1 {[%clk 0:02:47]}  exd4 {[%clk 0:02:48]} 11. Nxd4 {[%clk 0:02:47]}  Ne8 {[%clk 0:02:47]} 12. Nde2 {[%clk 0:02:43]}  Ne5 {[%clk 0:02:44]} 13. b3 {[%clk 0:02:42]}  Be6 {[%clk 0:02:21]} 14. Be3 {[%clk 0:02:42]}  Qa5 {[%clk 0:02:16]} 15. Rc1 {[%clk 0:02:27]}  f5 {[%clk 0:01:59]} 16. Nd4 {[%clk 0:02:21]}  Bxc4 {[%clk 0:01:47]} 17. bxc4 {[%clk 0:02:13]}  fxe4 {[%clk 0:01:43]} 18. Nxe4 {[%clk 0:02:09]}  Qxa2 {[%clk 0:01:42]} 19. Ne6 {[%clk 0:02:09]}  Rf7 {[%clk 0:01:34]} 20. Nxd6 {[%clk 0:02:00]}  Nxd6 {[%clk 0:01:31]} 21. Qxd6 {[%clk 0:02:01]}  Nxc4 {[%clk 0:01:28]} 22. Qc5 {[%clk 0:01:48]}  Nxe3 {[%clk 0:01:27]} 23. Qxe3 {[%clk 0:01:47]}  Re8 {[%clk 0:01:24]} 24. Re2 {[%clk 0:01:44]}  Qa4 {[%clk 0:01:12]} 25. h4 {[%clk 0:01:39]}  Rfe7 {[%clk 0:01:09]} 26. Bh3 {[%clk 0:01:39]}  Qb5 {[%clk 0:00:56]} 27. Qe4 {[%clk 0:01:27]}  a5 {[%clk 0:00:50]} 28. Rb1 {[%clk 0:01:27]}  Qa6 {[%clk 0:00:30]} 29. Qc2 {[%clk 0:01:12]}  a4 {[%clk 0:00:27]} 30. Qa2 {[%clk 0:01:12]}  Kh8 {[%clk 0:00:26]} 31. Rc2 {[%clk 0:01:08]}  Qd3 {[%clk 0:00:19]} 32. Bf1 {[%clk 0:01:03]}  Qf5 {[%clk 0:00:16]} 33. Nxg7 {[%clk 0:00:58]}  Kxg7 {[%clk 0:00:16]} 34. Qxa4 {[%clk 0:00:58]}  Kh6 {[%clk 0:00:13]} 35. Rcb2 {[%clk 0:00:51]}  b5 {[%clk 0:00:11]} 36. Qb4 {[%clk 0:00:50]}  Re4 {[%clk 0:00:08]} 37. Qd2+ {[%clk 0:00:49]}  Kh5 {[%clk 0:00:08]} 38. Bd3 {[%clk 0:00:48]}  Qd5 {[%clk 0:00:03]} 39. Bxe4 {[%clk 0:00:48]}  Qxe4 {[%clk 0:00:03]} 40. Qg5# {[%clk 0:00:48]} 1-0


[Site "https://www.chess.com"]

[Event "Titled Tuesday Blitz June 28 Early 2022"]
[White "Adewumi, Tanitoluwa"]
[Black "Bluebaum, Matthias"]
[WhiteFideId "30966396"]
[BlackFideId "24651516"]
[WhiteElo "2681"]
[BlackElo "2556"]
[Result "0-1"]
[Round "05"]
[TimeControl "180+1"]
[Date "2022.06.28"]
[WhiteClock "0:00:02"]
[BlackClock "0:01:04"]

1. e4 {[%clk 0:02:46]}  c6 {[%clk 0:03:00]} 2. d4 {[%clk 0:02:44]}  d5 {[%clk 0:03:01]} 3. e5 {[%clk 0:02:45]}  Bf5 {[%clk 0:03:01]} 4. Nf3 {[%clk 0:02:41]}  e6 {[%clk 0:03:01]} 5. Be2 {[%clk 0:02:41]}  c5 {[%clk 0:03:02]} 6. Be3 {[%clk 0:02:36]}  Nd7 {[%clk 0:03:02]} 7. O-O {[%clk 0:02:34]}  Ne7 {[%clk 0:03:02]} 8. c3 {[%clk 0:02:29]}  Nc6 {[%clk 0:03:01]} 9. Nbd2 {[%clk 0:02:22]}  Be7 {[%clk 0:02:58]} 10. a3 {[%clk 0:02:21]}  h6 {[%clk 0:02:57]} 11. b4 {[%clk 0:02:17]}  cxd4 {[%clk 0:02:46]} 12. cxd4 {[%clk 0:02:09]}  Nb6 {[%clk 0:02:46]} 13. Rc1 {[%clk 0:02:06]}  O-O {[%clk 0:02:41]} 14. Ne1 {[%clk 0:01:52]}  Rc8 {[%clk 0:02:36]} 15. Nd3 {[%clk 0:01:47]}  a5 {[%clk 0:02:08]} 16. b5 {[%clk 0:01:42]}  Na7 {[%clk 0:02:08]} 17. Nc5 {[%clk 0:01:32]}  Nd7 {[%clk 0:02:02]} 18. Nxb7 {[%clk 0:01:01]}  Qb6 {[%clk 0:01:59]} 19. Nc5 {[%clk 0:01:01]}  Nxc5 {[%clk 0:01:40]} 20. dxc5 {[%clk 0:01:01]}  Rxc5 {[%clk 0:01:41]} 21. Nb3 {[%clk 0:00:39]}  Rxc1 {[%clk 0:01:41]} 22. Bxb6 {[%clk 0:00:40]}  Rxd1 {[%clk 0:01:41]} 23. Rxd1 {[%clk 0:00:41]}  Nxb5 {[%clk 0:01:36]} 24. Bxb5 {[%clk 0:00:35]}  Bc2 {[%clk 0:01:36]} 25. Rc1 {[%clk 0:00:16]}  Bxb3 {[%clk 0:01:37]} 26. Bxa5 {[%clk 0:00:15]}  Bxa3 {[%clk 0:01:14]} 27. Rc3 {[%clk 0:00:15]}  Ra8 {[%clk 0:01:15]} 28. Rxb3 {[%clk 0:00:06]}  Rxa5 {[%clk 0:01:15]} 29. g3 {[%clk 0:00:06]}  g5 {[%clk 0:01:12]} 30. Bd3 {[%clk 0:00:06]}  Bc5 {[%clk 0:01:11]} 31. Kg2 {[%clk 0:00:06]}  Ra2 {[%clk 0:01:09]} 32. Rb8+ {[%clk 0:00:05]}  Kg7 {[%clk 0:01:09]} 33. Rb7 {[%clk 0:00:03]}  Rxf2+ {[%clk 0:01:09]} 34. Kh3 {[%clk 0:00:04]}  Bd4 {[%clk 0:01:06]} 35. Bb5 {[%clk 0:00:01]}  Bxe5 {[%clk 0:01:06]} 36. Bd7 {[%clk 0:00:02]}  Kg6 {[%clk 0:01:03]} 37. Be8 {[%clk 0:00:01]}  h5 {[%clk 0:01:03]} 38. Re7 {[%clk 0:00:01]}  g4+ {[%clk 0:01:04]} 39. Kh4 {[%clk 0:00:02]}  Rxh2# {[%clk 0:01:04]} 0-1


[Site "https://www.chess.com"]

[Event "Titled Tuesday Blitz June 28 Early 2022"]
[White "Agasarov, Benik"]
[Black "Golubovskis, Maksims"]
[WhiteFideId "13314823"]
[BlackFideId "11608528"]
[WhiteElo "2693"]
[BlackElo "2102"]
[Result "1-0"]
[Round "05"]
[TimeControl "180+1"]
[Date "2022.06.28"]
[WhiteClock "0:00:22"]
[BlackClock "0:00:03"]

1. c4 {[%clk 0:02:53]}  Nf6 {[%clk 0:02:59]} 2. Nc3 {[%clk 0:02:53]}  c5 {[%clk 0:03:00]} 3. Nf3 {[%clk 0:02:53]}  Nc6 {[%clk 0:02:59]} 4. d4 {[%clk 0:02:51]}  cxd4 {[%clk 0:03:00]} 5. Nxd4 {[%clk 0:02:52]}  e6 {[%clk 0:03:01]} 6. a3 {[%clk 0:02:50]}  d5 {[%clk 0:02:59]} 7. cxd5 {[%clk 0:02:46]}  exd5 {[%clk 0:02:59]} 8. Bg5 {[%clk 0:02:45]}  Be7 {[%clk 0:02:55]} 9. e3 {[%clk 0:02:44]}  O-O {[%clk 0:02:55]} 10. Be2 {[%clk 0:02:40]}  h6 {[%clk 0:02:50]} 11. Bf4 {[%clk 0:02:39]}  Qb6 {[%clk 0:02:39]} 12. Na4 {[%clk 0:02:32]}  Qd8 {[%clk 0:02:27]} 13. O-O {[%clk 0:02:31]}  Be6 {[%clk 0:02:17]} 14. Rc1 {[%clk 0:02:30]}  Qd7 {[%clk 0:02:16]} 15. Nc5 {[%clk 0:02:25]}  Bxc5 {[%clk 0:02:16]} 16. Rxc5 {[%clk 0:02:26]}  Rac8 {[%clk 0:02:15]} 17. Rc1 {[%clk 0:02:21]}  Ne4 {[%clk 0:02:11]} 18. Bf3 {[%clk 0:02:14]}  Rfd8 {[%clk 0:02:00]} 19. Qa4 {[%clk 0:02:10]}  Nd2 {[%clk 0:01:53]} 20. Rfd1 {[%clk 0:02:07]}  Nxd4 {[%clk 0:01:49]} 21. Qxd4 {[%clk 0:02:00]}  Rxc1 {[%clk 0:01:41]} 22. Rxc1 {[%clk 0:01:50]}  Nb3 {[%clk 0:01:40]} 23. Qc3 {[%clk 0:01:37]}  Nxc1 {[%clk 0:01:29]} 24. Qxc1 {[%clk 0:01:37]}  Qc6 {[%clk 0:01:28]} 25. Qd1 {[%clk 0:01:33]}  Rc8 {[%clk 0:01:27]} 26. Be5 {[%clk 0:01:28]}  Qc2 {[%clk 0:01:21]} 27. Bc3 {[%clk 0:01:15]}  Qxd1+ {[%clk 0:01:10]} 28. Bxd1 {[%clk 0:01:16]}  Kf8 {[%clk 0:01:06]} 29. f4 {[%clk 0:01:16]}  f6 {[%clk 0:01:01]} 30. Kf2 {[%clk 0:01:16]}  Ke7 {[%clk 0:01:00]} 31. Bd4 {[%clk 0:01:15]}  Rc1 {[%clk 0:00:57]} 32. Bf3 {[%clk 0:01:03]}  b6 {[%clk 0:00:56]} 33. g4 {[%clk 0:01:03]}  Rc2+ {[%clk 0:00:51]} 34. Kg3 {[%clk 0:01:03]}  g5 {[%clk 0:00:40]} 35. h4 {[%clk 0:01:01]}  Kf7 {[%clk 0:00:32]} 36. f5 {[%clk 0:00:58]}  Bd7 {[%clk 0:00:23]} 37. Bxd5+ {[%clk 0:00:59]}  Kg7 {[%clk 0:00:23]} 38. hxg5 {[%clk 0:00:56]}  hxg5 {[%clk 0:00:23]} 39. Bc3 {[%clk 0:00:57]}  Rc1 {[%clk 0:00:17]} 40. e4 {[%clk 0:00:57]}  Rd1 {[%clk 0:00:17]} 41. Kf3 {[%clk 0:00:53]}  Bb5 {[%clk 0:00:15]} 42. Bb7 {[%clk 0:00:44]}  Rd3+ {[%clk 0:00:15]} 43. Kf2 {[%clk 0:00:43]}  Rd7 {[%clk 0:00:14]} 44. Bd5 {[%clk 0:00:42]}  Bd3 {[%clk 0:00:04]} 45. Ke3 {[%clk 0:00:42]}  Bb1 {[%clk 0:00:04]} 46. Be6 {[%clk 0:00:41]}  Rd3+ {[%clk 0:00:04]} 47. Ke2 {[%clk 0:00:39]}  Rg3 {[%clk 0:00:03]} 48. e5 {[%clk 0:00:40]}  Rxg4 {[%clk 0:00:01]} 49. exf6+ {[%clk 0:00:41]}  Kf8 {[%clk 0:00:02]} 50. f7 {[%clk 0:00:36]}  a5 {[%clk 0:00:01]} 51. Kf3 {[%clk 0:00:28]}  Re4 {[%clk 0:00:01]} 52. Bd2 {[%clk 0:00:22]}  g4+ {[%clk 0:00:02]} 53. Kg3 {[%clk 0:00:22]}  Rxe6 {[%clk 0:00:03]} 54. fxe6 {[%clk 0:00:22]} 1-0


[Site "https://www.chess.com"]